Cogmind - Beta 14 @@@ ROGUE MODE // 2024.08.09 @ 23:08:41 Player: Bert Result: Self-destructed Performance ------------- Evolutions (1) 500 Regions Visited (3) 600 Robots Destroyed (14) 70 Value Destroyed (204) 204 Prototype IDs (0) 0 Alien Tech Used (0) 0 Bonus (0) 0 TOTAL SCORE: 1374 Bonus ------- None Cogmind --------- Core Integrity 400/400 Matter 223/300 Energy 160/160 System Corruption 0% Temperature Cool (0) Movement Rolling (95) Ox1 Location -9/Materials Parts ------- > --- POWER (1) -------- Light Nuclear Core > --- PROPULSION (2) --- Wheel > --- UTILITY (4) ------ Improved Heat Sink Small Storage Unit > --- WEAPON (2) ------- Light Cannon Light Cannon > --- INVENTORY (8) ---- Ion Engine Flight Unit Decoy Drone Bay Improved Light Cannon Datajack Peak State ------------ > --- POWER ------------ Light Nuclear Core > --- PROPULSION ------- Wheel > --- UTILITY ---------- Improved Heat Sink Small Storage Unit ECM Suite > --- WEAPON ----------- Light Cannon Light Cannon > --- INVENTORY -------- Ion Engine Flight Unit Decoy Drone Bay Datajack [Rating: 12] Favorites ----------- Power Light Nuclear Core Engine Light Ion Engine Power Core Light Nuclear Core Propulsion Wheel Wheel Wheel Flight Unit Flight Unit Utility Small Storage Unit Device Terrain Scanner Storage Small Storage Unit Protection Power Shielding Weapon Light Cannon Energy Gun EM Pulse Gun Ballistic Cannon Light Cannon Build | -11 -10 -10 -9 ------- Run | Yrd Mat Min Mat Slots Evolved 2 | . . . 2 Power . | . . . . Propulsion . | . . . . Utility 2 | . . . 2 Weapon . | . . . . Parts Attached 19 | 6 3 6 4 Power 2 | 1 . 1 . Engine 1 | 1 . . . Core 1 | . . 1 . Reactor . | . . . . Propulsion 6 | 2 . 3 1 Treads . | . . . . Leg . | . . . . Wheel 3 | 2 . . 1 Hover . | . . . . Flight 3 | . . 3 . Utility 6 | 1 2 . 3 Device 4 | . 1 . 3 Storage 1 | 1 . . . Processor . | . . . . Hackware . | . . . . Protection 1 | . 1 . . Artifact . | . . . . Weapon 5 | 2 1 2 . Energy Gun 2 | 2 . . . Energy Cannon . | . . . . Ballistic Gun . | . . . . Ballistic Cannon 3 | . 1 2 . Launcher . | . . . . Special Weapon . | . . . . Impact Weapon . | . . . . Slashing Weapon . | . . . . Piercing Weapon . | . . . . Special Melee Weapon . | . . . . Unidentified Prototypes . | . . . . Parts Lost 3 | . . 3 . Power . | . . . . Propulsion 1 | . . 1 . Utility . | . . . . Weapon 2 | . . 2 . Highest Loss Streak 3 | . . 3 . To Critical Strikes . | . . . . Average Slot Usage (%) 93 | . 94 94 68 Engine 3 | . 14 . . Core 10 | . . 13 11 Wheel 20 | . 28 18 11 Flight 6 | . . 8 . Device 2 | . 7 . 13 Storage 13 | . 14 14 11 Protection 7 | . 1 9 . Energy Gun 12 | . 27 9 . Ballistic Cannon 14 | . . 18 22 Peak Build Rating 12 | 6 7 11 12 Average Rating 9 | 4 6 10 11 On Entrance 5 | . 6 7 10 Naked Turns . | . . . . Heaviest Build 19 | 12 14 17 19 Greatest Support 20 | 20 20 20 10 Greatest Overweight (x) 4 | . . 4 1 Average Overweight (x) . | . . . 1 Largest Inventory Capacity 8 | 8 8 8 8 Average Capacity 7 | 6 8 8 8 Most Carried 8 | 2 8 8 8 Average Carried 6 | 1 3 7 6 Final Capacity 8 | 8 8 8 8 Final Carried 8 | 2 8 8 6 Class Distribution -------------------- 100% | Mutant Dominant Class ---------------- Mutant | -10/Materials Mutant | -10/Mines Mutant | -9/Materials Resources | -11 -10 -10 -9 ----------- Run | Yrd Mat Min Mat Matter Collected 422 | 207 27 187 1 Remotely . | . . . . Salvage Created 228 | . 56 164 8 Parts 27 | . 3 22 2 Haulers Intercepted . | . . . . Recyclers Shooed . | . . . . Parts Field Recycled . | . . . . Retrieved Matter . | . . . . Parts Self-Destructed . | . . . . Prevented . | . . . . Kills | -11 -10 -10 -9 ------- Run | Yrd Mat Min Mat Combat Hostiles Destroyed 11 | . . 11 . Guns 3 | . . 3 . Cannons 8 | . . 8 . Classes Destroyed 5 | . 2 2 1 Worker 1 | . 1 . . Operator 1 | . . . 1 Watcher 1 | . 1 . . Swarmer 9 | . . 9 . Grunt 2 | . . 2 . Best Kill Streak 3 | . 1 3 1 Combat Bots Only 3 | . . 3 . Max Kills in Single Turn 1 | . 1 1 1 Gunslinging . | . . . . Exploded . | . . . . Melee . | . . . . Uniques/NPCs Destroyed . | . . . . Combat | -11 -10 -10 -9 -------- Run | Yrd Mat Min Mat Hostile Shots Fired 58 | . 2 56 . Missed 19 | . 1 18 . Damage Taken 344 | . 25 319 . Core 49 | . 6 43 . Absorbed by Shields . | . . . . Redirected to Shielding 7 | . . 7 . Core Remaining (%) 90 | 100 . 80 . Volleys Fired 33 | . 7 25 1 Largest 2 | . 2 2 2 Hottest 75 | . 75 75 70 Shots Fired 60 | . 8 50 2 Gun 29 | . 7 22 . Cannon 31 | . 1 28 2 Launcher . | . . . . Special . | . . . . Kinetic 31 | . 1 28 2 Thermal . | . . . . Explosive . | . . . . Electromagnetic 29 | . 7 22 . Robot Hit Streak 6 | . 6 6 3 Robot Miss Streak 5 | . 1 5 . Penetration Max . | . . . . Secondary Targets . | . . . . Shots Hit Robots 33 | . 6 25 2 Core Hits 16 | . 2 13 1 Critical Kills . | . . . . Critical Parts Destroyed . | . . . . Critical Strikes 1 | . . 1 . Blast 1 | . . 1 . Melee Attacks . | . . . . Impact . | . . . . Slashing . | . . . . Piercing . | . . . . Sneak Attacks . | . . . . Combat Hostiles . | . . . . Follow-up Attacks . | . . . . Damage Inflicted 601 | . 169 398 34 Guns 257 | . 118 139 . Cannons 312 | . 19 259 34 Explosions 32 | . 32 . . Melee . | . . . . Ramming . | . . . . Kinetic 312 | . 19 259 34 Thermal 32 | . 32 . . Explosive . | . . . . Electromagnetic 257 | . 118 139 . Impact . | . . . . Slashing . | . . . . Piercing . | . . . . Highest Corruption . | . . . . Average Corruption . | . . . . Corruption Purged . | . . . . Corruption Blocked . | . . . . Overload Shots . | . . . . Overflow Damage 10 | . 10 . . Projectiles . | . . . . Explosions 10 | . 10 . . Melee . | . . . . Knockbacks 4 | . . 4 . Impact . | . . . . Kinetic 4 | . . 4 . Secondary . | . . . . Self-Inflicted Damage 12 | . 12 . . Shots 1 | . 1 . . Rammed . | . . . . Targets Rammed . | . . . . Kicked . | . . . . Crushed . | . . . . Highest Temperature 126 | . 15 126 . Average Temperature 53 | . 10 55 . Received Heat Transfer 63 | . 27 36 . Siege Activations . | . . . . Robots Corrupted . | . . . . Combat Hostiles . | . . . . Parts Fried 1 | . 1 . . Impact Corruptions . | . . . . Robots Melted . | . . . . Combat Hostiles . | . . . . Parts Melted . | . . . . Heat Transferred 50 | . 50 . . Parts Sabotaged . | . . . . Parts Stolen . | . . . . Parts Stripped . | . . . . Power Chain Reactions 1 | . 1 . . Alert | -11 -10 -10 -9 ------- Run | Yrd Mat Min Mat Peak Influence 282 | . 45 282 36 Initial 31 | . . 17 31 Average 91 | . 5 130 35 Maximum Alert Level 1 | . . 1 . Low Security (%) 92 | 100 100 88 100 Level 1 7 | . . 11 . Level 2 . | . . . . Level 3 . | . . . . Level 4 . | . . . . Level 5 . | . . . . High Security . | . . . . Max Security . | . . . . Squads Dispatched . | . . . . Investigation . | . . . . Extermination . | . . . . Reinforcement . | . . . . Assault . | . . . . Garrison . | . . . . Intercept . | . . . . Searches Triggered . | . . . . Construction Impeded . | . . . . Haulers Reinforced . | . . . . Active Scanning Responses . | . . . . Cargo Convoy Interrupts . | . . . . Stealth | -11 -10 -10 -9 --------- Run | Yrd Mat Min Mat Distress Signals 2 | . 1 1 . Communications Jammed . | . . . . Distress Signals . | . . . . Times Spotted 24 | . 8 15 1 Peak Tracking Total 5 | . 5 3 1 Tactical Retreats 2 | . . 2 . Traps | -11 -10 -10 -9 ------- Run | Yrd Mat Min Mat Traps Triggered . | . . . . Indirectly . | . . . . Trap Hack Attempts . | . . . . Triggered . | . . . . Disarmed . | . . . . Reprogrammed . | . . . . Reused . | . . . . Traps Extracted . | . . . . Installed . | . . . . Triggered . | . . . . Machines | -11 -10 -10 -9 ---------- Run | Yrd Mat Min Mat Machines Disabled . | . . . . Max in Single Turn . | . . . . Machines Repaired . | . . . . Machines Dismantled . | . . . . Machines Sabotaged . | . . . . Overloaded Fab Kills . | . . . . Hacking | -11 -10 -10 -9 --------- Run | Yrd Mat Min Mat Machines Accessed 3 | . . 1 2 Terminals 1 | . . . 1 Fabricators . | . . . . Repair Stations 1 | . . . 1 Recycling Units . | . . . . Scanalyzers . | . . . . Garrison Access . | . . . . Total Hacks 7 | . . 1 6 Successful 5 | . . 1 4 Failed 2 | . . . 2 Catastrophic . | . . . . Database Lockouts . | . . . . Manual . | . . . . Terminals 4 | . . . 4 Fabricators . | . . . . Repair Stations 2 | . . . 2 Recycling Units . | . . . . Scanalyzers . | . . . . Garrison Access . | . . . . Terminal Hacks 3 | . . 1 2 Record 1 | . . . 1 Open Door 1 | . . 1 . Zone Layout 1 | . . . 1 Fabricator Hacks . | . . . . Repair Station Hacks 2 | . . . 2 Scan Component 1 | . . . 1 Repair 1 | . . . 1 Recycling Unit Hacks . | . . . . Scanalyzer . | . . . . Garrison Access Hacks . | . . . . Unauthorized Hacks . | . . . . Terminals . | . . . . Fabricators . | . . . . Repair Stations . | . . . . Recycling Units . | . . . . Scanalyzers . | . . . . Garrison Access . | . . . . Data Cores Recovered 1 | . . . 1 Used 1 | . . . 1 Hacking Detections 1 | . . . 1 Full Trace Events . | . . . . Feedback Events . | . . . . Feedback Blocked . | . . . . Robot Schematics Acquired . | . . . . Robots Built . | . . . . Authchips . | . . . . Time . | . . . . Total Robot Build Rating . | . . . . Part Schematics Acquired . | . . . . Parts Built . | . . . . Authchips . | . . . . Time . | . . . . Total Part Build Rating . | . . . . Parts Repaired . | . . . . Time 26 | . . . 26 Parts Recycled . | . . . . Recycled Matter . | . . . . Retrieved Matter . | . . . . Retrieved Components . | . . . . Parts Scanalyzed . | . . . . Part Schematics Acquired . | . . . . Parts Damaged . | . . . . Bothacking | -11 -10 -10 -9 ------------ Run | Yrd Mat Min Mat Used RIF Installer . | . . . . Robots Hacked . | . . . . Non-combat . | . . . . Combat . | . . . . Robot Hacks Applied . | . . . . Relay Couplers Released . | . . . . Fabnet Peak Effective % . | . . . . Robots Rewired . | . . . . Allies Hacked . | . . . . Hacks Repelled . | . . . . Allies | -11 -10 -10 -9 -------- Run | Yrd Mat Min Mat Total Allies . | . . . . Largest Group . | . . . . Highest-Rated Group . | . . . . Highest-Rated Ally . | . . . . Total Orders . | . . . . Ally Attacks . | . . . . Total Damage . | . . . . Kills . | . . . . Allies Corrupted . | . . . . Allies Melted . | . . . . Intel | -11 -10 -10 -9 ------- Run | Yrd Mat Min Mat Robot Analysis Total . | . . . . Derelict Logs Recovered 1 | . . 1 . Drone Launches . | . . . . Drone Recoveries . | . . . . Exploration | -11 -10 -10 -9 ------------- Run | Yrd Mat Min Mat Turns Passed 870 | 38 193 592 47 Spaces Moved 784 | 34 207 504 39 Core 1 | 1 . . . Treads . | . . . . Legs . | . . . . Wheels 631 | 33 207 352 39 Hover . | . . . . Flight 152 | . . 152 . Fastest Speed 50 | 50 80 80 95 Average Speed 89 | 79 80 93 95 Slowest Speed 365 | 80 80 365 95 Overloaded Moves . | . . . . Propulsion Burnouts . | . . . . Robots Hopped . | . . . . Cave-ins Triggered . | . . . . Exploration Rate (%) 30 | 3 33 80 7 Regions Visited 3 Branch Regions 1 Pre-discovered Areas . | . . . . Known Exits Taken . | . . . . Unknown Exits Taken 3 | 1 1 1 . Scrap Searched 1 | . . 1 . Spaces Dug . | . . . . Terrain Destroyed 2 | . 2 . . Melee . | . . . . Projectile . | . . . . AOE 2 | . 2 . . Terrain Rammed . | . . . . Walls Destroyed . | . . . . Machines Disabled . | . . . . Actions | -11 -10 -10 -9 --------- Run | Yrd Mat Min Mat Total 890 | 41 225 576 48 Wait 33 | . 3 30 . Move 781 | 33 206 503 39 Hop . | . . . . Pick Up 12 | 2 5 4 1 Fast Attach 10 | 6 2 2 . Attach 6 | . . 2 4 Detach 3 | . 1 1 1 Swap 3 | . 1 2 . Drop 9 | . . 7 2 Fire 33 | . 7 25 1 Melee . | . . . . Ram . | . . . . Kick . | . . . . Crush . | . . . . Escape Stasis . | . . . . Rewire . | . . . . Trap . | . . . . Miscellaneous . | . . . . Route ------- -11/Scrapyard -10/Materials -10/Mines -9/Materials History --------- Turn | Location | Event 23 | -11/Scrapyard | Discovered new exit (range 16) 39 | -11/Scrapyard | Entered Materials 196 | -10/Materials | Discovered new exit (range 7) 232 | -10/Materials | Entered Mines 314 | -10/Mines | Build established: Mutant 364 | -10/Mines | Assembled infested the area 464 | -10/Mines | Learned 4 Materials zone layouts 469 | -10/Mines | Found the Drone Emporium 474 | -10/Mines | Found Prototype Device 647 | -10/Mines | Lost 3 parts (1n2w) 811 | -10/Mines | Discovered new exit (range 10) 824 | -10/Mines | Entered Materials 824 | -9/Materials | Evolved 2 slots: Utility x2 871 | -9/Materials | Self-destructed Last Messages --------------- Third planet from the Sun in the [Solar System]. Terrestrial homeworld of [Human] civilization. By the late 21st century that civilization drained the planet's resources and destabilized the environment to the point that global-scale technology was necessary to maintain an increasingly fragile planet. 00844_ Connecting with Terminal... 00854_ Acquired Imp. Light Cannon. 00862_ Connecting with Repair Station... >>Scan(ECM Suite) Scanning ECM Suite... Ready to Repair: ECM Suite Rating: 1 Time: 26 >>Repair Repairing ECM Suite... ETC: 26 00870_ K-01 Serf collects debris. Map ----- +----------------------------------------------------+ | ??? ## ##????# # #???????????????????# | | ???###### #?????# + #???????????????????# | | ????#####+##????# ###########??????##########???# | | ????# #????# #????????????????# #???# | | ????# #????# ########?????????# """#???# | | ????# #????# ## ########### """#???# | | ????# #????# ## # """#???# | | ????# #????# + #???# | | ????# #????#### # """#???# | | ???####+####???????# #######+### """#???## | | ??? #???????#??### ######## ## """#????# | | ???#### #????## ###### # # ## #????# | | ??????# #????# # """ # ###########????# | | ???#### #????# + """ # #??????????????# | | ??? #????# # """ # #??????????????# | | ??? #????# # # #??????????????# | | ??? #????# # # #??????????????# | | ??? ###????# ##+#########??????????????# | | ??? #??????# ^ # #??????????????# | | ??? #####??# + """ #??????????????# | | ??? #??# T !!! # """ #??????????????# | | ??? #??# k!! # """ #??????????????# | | ??? #??# !! # #??????????????# | | ??? #??# [[ #########??????????????# | | ?????????????# [/ ###########????????????? | | ?????????????# @/ #????????????? | | ?????????????# # #????????????? | | ?????????????# # #????????????? | | ?????????????# # """ #????????????? | | ?????????????######## # """ """ #????????????? | | ????????????????????# # "R """ #????????????? | | ??????????????????### # """ #????????????? | | ?????????????????? # # #????????????? | | ?????????????????? # #######+###????????????? | | ?????????????????? # ##### #????????????? | | ?????????????????? # * #????????????? | | ?????????????????? + = T #????????????? | | ?????????????????? # % #????????????? | | ?????????????????? #+#+####### #????????????? | | ?????????????????? # #??## ##????????????? | | ?????????????????? # """ #???# #?????????????? | | ??????????????????### """ #???# #?????????????? | | ????????????????????# """ #???# = #?????????????? | | ????????????????????# #???# = #?????????????? | | ????????????????????# #???#####?????????????? | | ????????????????????########?????????????????????? | | ?????????????????????????????????????????????????? | | ?????????????????????????????????????????????????? | | ?????????????????????????????????????????????????? | | | +----------------------------------------------------+ Best States ------------- Heat Dissipation 42 Energy Generation 14 Energy Capacity 160 Matter Stores 300 Matter Capacity 300 Sight Range 16 Terrain Scan Range 14 Terrain Scan Density 10 ECM Strength 1 Power Shielding 33 Evasion (%) 44 Item Schematics ----------------- None Robot Schematics ------------------ None Fabricated ------------ Nothing Alien Tech Used ----------------- None Achievements -------------- None Challenges ------------ None Game ------ Seed MolecularSwarmBoomstick Manual? 0 Play Time 00:16:48 Cumulative 166.6 hours Start 2024.08.08 @ 21:21:55 End 2024.08.09 @ 23:08:41 Sessions 5 Manual Loads 0 Difficulty Rogue Special Mode None Game No. 226 Rogue 226 Adventurer 0 Explorer 0 Win Type - Total 1 Types 1/0/0/0/0/0/0/0/0 Lore% 22 Gallery% 51 Achievement% 41 Wizard Run 0 Options --------- Layout 1 ASCII 0 Keyboard 1 Movement Numpad Keybinds 0 Fullscreen 1 Font 16/SmallcapsGlow Map View 55x38 Zoom Use 0% Tactical HUD 1 Map Filters NONE Filters NONE Steam 1 RUN: def221b2-0b42-4649-ab99-0780532ae75a